fUST/lending_fUST_20250708
["ID","MTS","AMOUNT","RATE_DAILY","PERIOD"]
[370361942,1751980247995,-151.0,0.00019452,2]
[370361943,1751980248004,-580.0,0.00019452,2]
[370361944,1751980248014,-151.0,0.00019452,2]
[370361945,1751980248024,-151.0,0.00019452,2]
[370361946,1751980248034,-232.50938,0.00019452,2]
[370361947,1751980248043,-460.0,0.00019452,2]
[370361948,1751980248053,-460.0,0.00019452,2]
[370361949,1751980248062,-460.0,0.00019452,2]
[370361950,1751980248071,-7424.3,0.00019452,2]
[370361951,1751980248081,-460.0,0.00019452,2]
[370361952,1751980248090,-460.0,0.00019452,2]
[370361953,1751980248100,-4592.02,0.00019452,2]
[370361954,1751980248109,-460.0,0.00019452,2]
[370361955,1751980248119,-2379.75,0.00019452,2]
[370361956,1751980248128,-460.0,0.00019452,2]
[370361957,1751980248138,-460.0,0.00019452,2]
[370361958,1751980248147,-460.0,0.00019452,2]
[370361959,1751980248157,-1316.67,0.00019452,2]
[370361960,1751980248167,-1347.81,0.00019452,2]
[370361961,1751980248176,-460.0,0.00019452,2]
[370361962,1751980248185,-460.0,0.00019452,2]
[370361963,1751980248195,-750.18,0.00019452,2]
[370361964,1751980248205,-460.0,0.00019452,2]
[370361965,1751980248214,-712.24,0.00019452,2]
[370361966,1751980248223,-356.03,0.00019452,2]
[370361967,1751980248233,-460.0,0.00019452,2]
[370361968,1751980248243,-460.0,0.00019452,2]
[370361969,1751980248252,-2174.39,0.00019452,2]
[370361970,1751980248262,-460.0,0.00019452,2]
[370361971,1751980248271,-1257.48,0.00019452,2]
[370361972,1751980248280,-624.19,0.00019452,2]
[370361973,1751980248290,-460.0,0.00019452,2]
[370361974,1751980248299,-2807.16,0.00019452,2]
[370361975,1751980248308,-460.0,0.00019452,2]
[370361976,1751980248318,-460.0,0.00019452,2]
[370361977,1751980248327,-5458.98,0.00019452,2]
[370361978,1751980248337,-460.0,0.00019452,2]
[370361979,1751980248346,-4480.24,0.00019452,2]
[370361980,1751980248356,-838.39,0.00019452,2]
[370361981,1751980248365,-1224.9,0.00019452,2]
[370361982,1751980248374,-460.0,0.00019452,2]
[370361983,1751980248383,-460.0,0.00019452,2]
[370361984,1751980248393,-638.45,0.00019452,2]
[370361985,1751980248403,-460.0,0.00019452,2]
[370361986,1751980248413,-2179.89,0.00019452,2]
[370361987,1751980248423,-460.0,0.00019452,2]
[370361988,1751980248433,-495.95,0.00019452,2]
[370361989,1751980248443,-460.0,0.00019452,2]
[370361990,1751980248452,-682.99,0.00019452,2]
[370361991,1751980248461,-460.0,0.00019452,2]
[370361992,1751980248470,-907.3,0.00019452,2]
[370361993,1751980248480,-1061.24,0.00019452,2]
[370361994,1751980248490,-765.59,0.00019452,2]
[370361995,1751980248499,-460.0,0.00019452,2]
[370361996,1751980248508,-460.0,0.00019452,2]
[370361997,1751980248517,-1000.69,0.00019452,2]
[370361998,1751980248527,-460.0,0.00019452,2]
[370361999,1751980248536,-460.0,0.00019452,2]
[370362000,1751980248545,-460.0,0.00019452,2]
[370362001,1751980248555,-881.1,0.00019452,2]
[370362002,1751980248564,-460.0,0.00019452,2]
[370362003,1751980248573,-460.0,0.00019452,2]
[370362004,1751980248583,-460.0,0.00019452,2]
[370362005,1751980248592,-460.0,0.00019452,2]
[370362006,1751980248601,-460.0,0.00019452,2]
[370362007,1751980248611,-460.0,0.00019452,2]
[370362008,1751980248621,-524.76607357,0.00019452,2]
[370362009,1751980248719,-460.0,0.00019452,2]
[370362010,1751980248742,-4484.3,0.00019452,2]
[370362011,1751980248751,-460.0,0.00019452,2]
[370362012,1751980248761,-460.0,0.00019452,2]
[370362013,1751980248770,-460.0,0.00019452,2]
[370362014,1751980248779,-460.0,0.00019452,2]
[370362015,1751980248789,-460.0,0.00019452,2]
[370362016,1751980248798,-488.78,0.00019452,2]
[370362017,1751980248807,-236.217232,0.00019452,2]
[370362018,1751980248820,-460.0,0.00019452,2]
[370362019,1751980248830,-497.51327461,0.00019452,2]
[370362020,1751980248839,-460.0,0.00019452,2]
[370362021,1751980248848,-460.0,0.00019452,2]
[370362022,1751980248859,-488.48,0.00019452,2]
[370362023,1751980248869,-477.86,0.00019452,2]
[370362024,1751980248879,-5816.49,0.00019452,2]
[370362025,1751980248889,-444.45244042,0.00019452,2]
[370362026,1751980248899,-460.0,0.00019452,2]
[370362027,1751980248908,-463.42469228,0.00019452,2]
[370362028,1751980248917,-3570.9,0.00019452,2]
[370362029,1751980248927,-533.73,0.00019452,2]
[370362030,1751980248936,-905.75,0.00019452,2]
[370362031,1751980248946,-2037.22,0.00019452,2]
[370362032,1751980248955,-552.43,0.00019452,2]
[370362033,1751980248965,-863.23,0.00019452,2]
[370362034,1751980248975,-460.0,0.00019452,2]
[370362035,1751980248984,-460.0,0.00019452,2]
[370362036,1751980248994,-460.0,0.00019452,2]
[370362037,1751980249004,-460.0,0.00019452,2]
[370362038,1751980249014,-3724.52,0.00019452,2]
[370362039,1751980249024,-460.0,0.00019452,2]
[370362040,1751980249033,-985.4,0.00019452,2]
[370362041,1751980249043,-1098.25,0.00019452,2]
[370362042,1751980249052,-460.0,0.00019452,2]
[370362043,1751980249062,-869.89,0.00019452,2]
[370362044,1751980249072,-460.0,0.00019452,2]
[370362045,1751980249082,-500.11,0.00019452,2]
[370362046,1751980249091,-460.0,0.00019452,2]
[370362047,1751980249101,-460.0,0.00019452,2]
[370362048,1751980249110,-1868.2,0.00019452,2]
[370362049,1751980249121,-460.0,0.00019452,2]
[370362050,1751980249130,-460.0,0.00019452,2]
[370362051,1751980249141,-673.39,0.00019452,2]
[370362052,1751980249150,-2181.02,0.00019452,2]
[370362053,1751980249160,-460.0,0.00019452,2]
[370362054,1751980249169,-576.61,0.00019452,2]
[370362055,1751980249178,-638.63,0.00019452,2]
[370362056,1751980249188,-3652.4,0.00019452,2]
[370362057,1751980249197,-978.78,0.00019452,2]
[370362058,1751980249207,-460.0,0.00019452,2]
[370362059,1751980249216,-460.0,0.00019452,2]
[370362060,1751980249226,-8636.29,0.00019452,2]
[370362061,1751980249235,-1063.82,0.00019452,2]
[370362062,1751980249245,-551.53,0.00019452,2]
[370362063,1751980249255,-460.0,0.00019452,2]
[370362064,1751980249264,-1181.32,0.00019452,2]
[370362065,1751980249274,-460.0,0.00019452,2]
[370362066,1751980249283,-550.27596026,0.00019452,2]
[370362067,1751980249292,-3681.24,0.00019452,2]
[370362068,1751980249302,-460.0,0.00019452,2]
[370362069,1751980249311,-460.0,0.00019452,2]
[370362070,1751980249321,-956.38,0.00019452,2]
[370362071,1751980249330,-618.71,0.00019452,2]
[370362072,1751980249339,-799.69,0.00019452,2]
[370362073,1751980249349,-500.0,0.00019473,2]
[370362074,1751980249358,-500.32877613,0.00019473,2]
[370362075,1751980249369,-500.0,0.00019473,2]
[370362076,1751980249379,-500.0,0.00019473,2]
[370362077,1751980249388,-500.0,0.00019473,2]
[370362078,1751980249398,-500.0,0.00019473,2]
[370362079,1751980249408,-500.0,0.00019473,2]
[370362080,1751980249417,-603.96915133,0.00019473,2]
[370362081,1751980249427,-500.0,0.00019473,2]
[370362082,1751980249436,-500.0,0.00019473,2]
[370362083,1751980249446,-500.0,0.00019473,2]
[370362084,1751980249455,-650.0,0.00019473,2]
[370362085,1751980249465,-500.0,0.00019473,2]
[370362086,1751980249474,-500.0,0.00019473,2]
[370362087,1751980249483,-294.84165221,0.00019473,2]
[370362088,1751980249492,-500.97963928,0.00019473,2]
[370362089,1751980249502,-500.0,0.00019473,2]
[370362090,1751980249512,-500.0,0.00019473,2]
[370362091,1751980249522,-500.0,0.00019473,2]
[370362092,1751980249531,-274.48562399,0.00019473,2]
[370362093,1751980249541,-500.0,0.00019473,2]
[370362094,1751980249550,-500.0,0.00019473,2]
[370362095,1751980249559,-500.0,0.00019473,2]
[370362096,1751980249569,-500.0,0.00019473,2]
[370362097,1751980249579,-500.0,0.00019473,2]
[370362098,1751980249589,-500.0,0.00019473,2]
[370362099,1751980249598,-500.84765489,0.00019473,2]
[370362100,1751980249607,-500.0,0.00019473,2]
[370362101,1751980249617,-500.0,0.00019473,2]
[370362102,1751980249627,-500.0,0.00019473,2]
[370362103,1751980249636,-500.0,0.00019473,2]
[370362104,1751980249645,-500.0,0.00019473,2]
[370362105,1751980249654,-500.0,0.00019473,2]
[370362106,1751980249663,-503.73119541,0.00019473,2]
[370362107,1751980249673,-491.04253568,0.00019473,2]
[370362108,1751980249682,-500.92668472,0.00019473,2]
[370362109,1751980249691,-153.0,0.00019479,2]
[370362110,1751980249701,-153.0,0.00019479,2]
[370362111,1751980249710,-153.0,0.00019479,2]
[370362112,1751980249720,-306.0,0.00019479,2]
[370362113,1751980249729,-168.0,0.00019499,2]
[370362114,1751980249739,-366.6942869,0.000195,2]
[370362115,1751980249748,-153.0,0.000195,2]
[370362116,1751980249759,-153.0,0.000195,2]
[370362117,1751980249769,-153.0,0.000195,2]
[370362118,1751980249779,-306.0,0.000195,2]
[370362119,1751980249789,-153.0,0.000195,2]
[370362120,1751980249801,-70.36135999,0.000195,2]
[370362121,1751980250042,-80.63864001,0.000195,2]
[370362122,1751980250051,-782.4633035,0.00019507,2]
[370362123,1751980250061,-162.1290201,0.00019507,2]
[370362124,1751980250070,-151.0,0.00019507,2]
[370362125,1751980250080,-247.364,0.00019556,2]
[370362126,1751980250089,-150.797,0.00019556,2]
[370362127,1751980250099,-275.408,0.00019556,2]
[370362128,1751980250108,-150.718,0.00019556,2]
[370362129,1751980250118,-151.337,0.00019556,2]
[370362130,1751980250127,-151.011,0.00019556,2]
[370362131,1751980250136,-150.0,0.00019556,2]
[370362132,1751980250146,-217.769,0.00019556,2]
[370362133,1751980250154,-967.0,0.00019556,2]
[370362134,1751980250164,-763.471,0.00019556,2]
[370362135,1751980250173,-2153.0,0.00019556,2]
[370362136,1751980250182,-151.0,0.00019556,2]
[370362137,1751980250192,-151.0,0.00019556,2]
[370362138,1751980250201,-168.0,0.00019584,2]
[370362139,1751980250211,-486.0,0.00019595,2]
[370362140,1751980250220,-500.0,0.000196,2]
[370362141,1751980250229,-500.0,0.000196,2]
[370362142,1751980250239,-7362.14141405,0.000196,2]
[370362143,1751980250252,-349.93587836,0.000196,2]
[370362144,1751980250263,-11386.14576542,0.000196,2]
[370362145,1751980250527,158.27145,0.00013699,2]
[370362146,1751980251941,-530.99,0.00019178,2]
[370362147,1751980251950,-717.24,0.00019178,2]
[370362148,1751980251960,-2999.95,0.00019178,2]
[370362149,1751980251970,-151.0,0.00019191,2]
[370362150,1751980251979,-530.99,0.00019452,2]
[370362151,1751980251989,-151.0,0.00019452,2]
[370362152,1751980251998,-151.0,0.00019452,2]
[370362153,1751980252007,-717.24,0.00019452,2]
[370362154,1751980252017,-281.991641,0.00019452,2]
[370362155,1751980252027,-8591.78878076,0.000196,2]
[370362156,1751980252039,-3176.80957824,0.000196,2]
[370362157,1751980252051,-9309.95383901,0.000196,2]
[370362158,1751980252067,-1043.34516783,0.00019452,2]
[370362159,1751980252079,-1956.60483217,0.00019452,2]
[370362160,1751980252088,-783.98259534,0.000196,2]
[370362161,1751980252705,5000.0,0.0001812,2]
[370362164,1751980668467,-185.33262941,0.00018219,2]
[370362165,1751980670727,-204.95116927,0.00018219,2]
[370362170,1751980728170,-431.25205492,0.00018219,2]
[370362171,1751980728201,-312.29507269,0.00018338,2]
[370362172,1751980755703,3242.24414291,0.000184,2]
[370362173,1751980763147,-150.39167193,0.00018523,2]
[370362174,1751980763169,-1963.53037219,0.000189,2]
[370362175,1751980763191,-208.86527392,0.0001902,2]
[370362176,1751980763214,-182.24,0.00019067,3]
[370362177,1751980763236,-546.72,0.00019067,3]
[370362178,1751980763259,-500.0,0.00019073,2]
[370362179,1751980763282,-300.0,0.00019075,2]
[370362180,1751980763306,-539.7666949,0.00019076,2]
[370362181,1751980763327,-212.41391493,0.00019076,2]
[370362182,1751980763348,-500.0,0.00019076,2]
[370362183,1751980763369,-528.92248181,0.00019076,2]
[370362184,1751980763391,-500.0,0.00019076,2]
[370362185,1751980763412,-500.0,0.00019076,2]
[370362186,1751980763434,-500.0,0.00019076,2]
[370362187,1751980763457,-500.0,0.00019076,2]
[370362188,1751980763479,-500.0,0.00019076,2]
[370362189,1751980763500,-500.0,0.00019076,2]
[370362190,1751980763523,-500.0,0.00019076,2]
[370362191,1751980763544,-500.0,0.00019076,2]
[370362192,1751980763565,-500.0,0.00019076,2]
[370362193,1751980763587,-500.0,0.00019076,2]
[370362194,1751980763612,-500.0,0.00019076,2]
[370362195,1751980763636,-500.0,0.00019076,2]
[370362196,1751980763658,-443.34950922,0.00019076,2]
[370362197,1751980763681,-500.0,0.00019076,2]
[370362198,1751980763704,-500.0,0.00019076,2]
[370362199,1751980763728,-500.0,0.00019076,2]
[370362200,1751980763751,-500.0,0.00019076,2]
[370362201,1751980763772,-500.0,0.00019076,2]
[370362202,1751980763795,-500.0,0.00019076,2]
[370362203,1751980763818,-542.48428622,0.00019076,2]
[370362204,1751980763840,-500.0,0.00019076,2]
[370362205,1751980763866,-500.0,0.00019076,2]
[370362206,1751980763890,-500.0,0.00019076,2]
[370362207,1751980763913,-500.0,0.00019076,2]
[370362208,1751980763936,-500.0,0.00019076,2]
[370362209,1751980763961,-500.0,0.00019076,2]
[370362210,1751980763987,-500.0,0.00019076,2]
[370362211,1751980764010,-500.0,0.00019076,2]
[370362212,1751980764036,-500.0,0.00019076,2]
[370362213,1751980764059,-500.0,0.00019076,2]
[370362214,1751980764084,-500.0,0.00019076,2]
[370362215,1751980764107,-500.0,0.00019076,2]
[370362216,1751980764130,-500.0,0.00019076,2]
[370362217,1751980764151,-500.0,0.00019076,2]
[370362218,1751980764174,-500.0,0.00019076,2]
[370362219,1751980764196,-500.0,0.00019076,2]
[370362220,1751980764218,-500.0,0.00019076,2]
[370362221,1751980764240,-500.0,0.00019076,2]
[370362222,1751980764262,-500.0,0.00019076,2]
[370362223,1751980764284,-500.0,0.00019076,2]
[370362224,1751980764306,-500.0,0.00019076,2]
[370362225,1751980764328,-500.0,0.00019076,2]
[370362226,1751980764351,-500.0,0.00019076,2]
[370362227,1751980764374,-500.0,0.00019076,2]
[370362228,1751980764397,-500.0,0.00019076,2]
[370362229,1751980764420,-175.82591556,0.00019076,2]
[370362230,1751980764442,-500.0,0.00019076,2]
[370362231,1751980764464,-500.0,0.00019076,2]
[370362232,1751980764486,-500.0,0.00019076,2]
[370362233,1751980764508,-500.0,0.00019076,2]
[370362234,1751980764530,-500.0,0.00019076,2]
[370362235,1751980764553,-500.0,0.00019076,2]
[370362236,1751980764577,-500.0,0.00019076,2]
[370362237,1751980764601,-500.0,0.00019076,2]
[370362238,1751980764625,-500.0,0.00019076,2]
[370362239,1751980764650,-500.0,0.00019076,2]
[370362240,1751980764791,-500.0,0.00019076,2]
[370362241,1751980764818,-500.0,0.00019076,2]
[370362242,1751980764842,-500.0,0.00019076,2]
[370362243,1751980764864,-500.0,0.00019076,2]
[370362244,1751980764887,-500.0,0.00019076,2]
[370362245,1751980764912,-500.0,0.00019076,2]
[370362246,1751980764936,-500.0,0.00019076,2]
[370362247,1751980764959,-500.0,0.00019076,2]
[370362248,1751980764986,-500.0,0.00019076,2]
[370362249,1751980765008,-500.0,0.00019076,2]
[370362250,1751980765031,-500.0,0.00019076,2]
[370362251,1751980765053,-285.48987932,0.00019076,2]
[370362252,1751980839321,200.366477,0.00018222,2]
[370362253,1751980893901,562.0,0.00027397,120]
[370362254,1751980903722,1000.0,0.00027,120]
[370362255,1751980970664,5000.0,0.000184,2]
[370362256,1751980986270,2570.29512487,0.000184,2]
[370362257,1751980986292,2429.70487513,0.000184,2]
[370362258,1751981001807,5000.0,0.000184,2]
[370362259,1751981014536,165.3404473,0.0001802,2]
[370362260,1751981018228,4904.95467757,0.000184,2]
[370362261,1751981018253,54.76091742,0.000184,2]
[370362263,1751981140910,195.26773097,0.00018333,2]
[370362265,1751981151340,1220.040361,0.0001801,2]
[370362268,1751981211461,11029.93099061,0.00018004,2]
[370362269,1751981211486,12500.0,0.00018004,2]
[370362270,1751981211511,1370.06900939,0.00018004,2]
[370362276,1751981319853,676.31105291,0.0001,7]
[370362277,1751981326895,4332.225505,0.00025365,120]
[370362281,1751981371231,162.688398,0.00013699,2]
[370362309,1751981432068,-292.05180544,0.000185,2]
[370362310,1751981432077,-268.96765774,0.00018751,2]
[370362316,1751981432127,-623.24765087,0.00018751,2]
[370362317,1751981432137,-1309.02024813,0.000189,2]
[370362318,1751981432147,-2030.76176947,0.00018962,2]
[370362319,1751981432156,-413.6880709,0.0001897,2]
[370362320,1751981432166,-413.68807089,0.00018975,2]
[370362321,1751981432176,-993.97297527,0.00018978,2]
[370362322,1751981432185,-413.68807089,0.0001898,2]
[370362324,1751981432194,-413.68807089,0.00018984,2]
[370362327,1751981432204,-413.68807089,0.00018989,2]
[370362328,1751981432213,-208.86527392,0.00018989,2]
[370362331,1751981432223,-300.0,0.00018999,2]
[370362332,1751981432232,-300.0,0.00018999,2]
[370362333,1751981432241,-300.0,0.00018999,2]
[370362334,1751981432252,-1200.0,0.00018999,2]
[370362335,1751981432261,-300.0,0.00018999,2]
[370362336,1751981432270,-300.0,0.00018999,2]
[370362337,1751981432280,-302.66710251,0.00019,2]
[370362338,1751981432290,-23422.99981202,0.00019,2]
[370362339,1751981432302,-6401.74187324,0.00019,20]
[370362340,1751981432311,-5461.15789509,0.00019,2]
[370362341,1751981432320,-185.692379,0.0001901,2]
[370362342,1751981432330,-207.4,0.00019059,2]
[370362343,1751981432340,-690.642,0.00019059,2]
[370362344,1751981432349,-500.0,0.00019061,2]
[370362345,1751981432358,-500.0,0.00019061,2]
[370362346,1751981432368,-500.0,0.00019061,2]
[370362347,1751981432377,-500.0,0.00019061,2]
[370362348,1751981432386,-215.92772325,0.00019061,2]
[370362349,1751981432395,-500.0,0.00019061,2]
[370362350,1751981432405,-500.0,0.00019061,2]
[370362351,1751981432414,-500.0,0.00019061,2]
[370362352,1751981432424,-500.0,0.00019061,2]
[370362353,1751981432433,-500.0,0.00019061,2]
[370362354,1751981432443,-500.0,0.00019061,2]
[370362355,1751981432453,-500.0,0.00019061,2]
[370362356,1751981432462,-500.0,0.00019061,2]
[370362357,1751981432471,-500.0,0.00019061,2]
[370362358,1751981432480,-500.0,0.00019061,2]
[370362359,1751981432490,-500.0,0.00019061,2]
[370362360,1751981432500,-500.0,0.00019061,2]
[370362361,1751981432512,-500.0,0.00019061,2]
[370362362,1751981432522,-500.0,0.00019061,2]
[370362363,1751981432531,-500.0,0.00019061,2]
[370362364,1751981432540,-460.64170017,0.00019061,2]
[370362365,1751981432550,-500.0,0.00019061,2]
[370362366,1751981432559,-500.0,0.00019061,2]
[370362367,1751981432568,-500.0,0.00019061,2]
[370362368,1751981432578,-500.0,0.00019061,2]
[370362369,1751981432588,-500.0,0.00019061,2]
[370362370,1751981432598,-500.0,0.00019061,2]
[370362371,1751981432608,-500.0,0.00019061,2]
[370362372,1751981432617,-500.0,0.00019061,2]
[370362373,1751981432626,-500.0,0.00019061,2]
[370362374,1751981432635,-500.0,0.00019061,2]
[370362375,1751981432645,-500.0,0.00019061,2]
[370362376,1751981432655,-308.44643466,0.00019061,2]
[370362377,1751981432664,-500.0,0.00019061,2]
[370362378,1751981432674,-500.0,0.00019061,2]
[370362379,1751981432684,-500.0,0.00019061,2]
[370362380,1751981432694,-500.0,0.00019061,2]
[370362381,1751981432704,-500.0,0.00019061,2]
[370362382,1751981432714,-168.80601233,0.00019061,2]
[370362383,1751981432723,-500.0,0.00019061,2]
[370362384,1751981432733,-500.0,0.00019061,2]
[370362386,1751981432742,-500.0,0.00019061,2]
[370362387,1751981432755,-500.0,0.00019061,2]
[370362388,1751981432764,-500.0,0.00019061,2]
[370362389,1751981432774,-500.0,0.00019061,2]
[370362390,1751981432783,-500.0,0.00019061,2]
[370362391,1751981432794,-500.0,0.00019061,2]
[370362392,1751981432803,-500.0,0.00019061,2]
[370362393,1751981432812,-500.0,0.00019061,2]
[370362394,1751981432822,-500.0,0.00019061,2]
[370362395,1751981432832,-286.60700463,0.00019061,2]
[370362396,1751981432841,-500.0,0.00019061,2]
[370362397,1751981432851,-500.0,0.00019061,2]
[370362398,1751981432861,-500.0,0.00019061,2]
[370362399,1751981432871,-500.0,0.00019061,2]
[370362400,1751981432880,-500.0,0.00019061,2]
[370362401,1751981432890,-500.0,0.00019061,2]
[370362402,1751981432900,-500.0,0.00019061,2]
[370362403,1751981432910,-500.0,0.00019061,2]
[370362404,1751981432919,-500.0,0.00019061,2]
[370362405,1751981432929,-500.0,0.00019061,2]
[370362406,1751981432938,-500.0,0.00019061,2]
[370362407,1751981432948,-500.0,0.00019061,2]
[370362408,1751981432958,-500.0,0.00019061,2]
[370362409,1751981432967,-500.0,0.00019061,2]
[370362410,1751981433093,-500.0,0.00019061,2]
[370362411,1751981433103,-500.0,0.00019061,2]
[370362412,1751981433113,-500.0,0.00019061,2]
[370362413,1751981433123,-500.0,0.00019061,2]
[370362414,1751981433132,-500.0,0.00019061,2]
[370362415,1751981433142,-500.0,0.00019061,2]
[370362416,1751981433151,-500.0,0.00019061,2]
[370362417,1751981433161,-500.0,0.00019061,2]
[370362418,1751981433171,-500.0,0.00019061,2]
[370362419,1751981433180,-362.20837421,0.00019061,2]
[370362420,1751981433190,-500.0,0.00019061,2]
[370362421,1751981433201,-500.0,0.00019061,2]
[370362422,1751981433212,-500.0,0.00019061,2]
[370362423,1751981433221,-500.0,0.00019061,2]
[370362424,1751981433231,-500.0,0.00019061,2]
[370362425,1751981433241,-500.0,0.00019061,2]
[370362426,1751981433254,-500.0,0.00019061,2]
[370362427,1751981433263,-500.0,0.00019061,2]
[370362428,1751981433273,-500.0,0.00019061,2]
[370362429,1751981433284,-500.0,0.00019061,2]
[370362430,1751981433296,-500.0,0.00019061,2]
[370362431,1751981433307,-500.0,0.00019061,2]
[370362432,1751981433316,-500.0,0.00019061,2]
[370362433,1751981433327,-500.0,0.00019061,2]
[370362434,1751981433338,-500.0,0.00019061,2]
[370362435,1751981433348,-500.0,0.00019061,2]
[370362436,1751981433358,-500.0,0.00019061,2]
[370362437,1751981433371,-500.0,0.00019061,2]
[370362438,1751981433381,-500.0,0.00019061,2]
[370362439,1751981433391,-649.99999999,0.00019061,2]
[370362440,1751981433401,-500.0,0.00019061,2]
[370362441,1751981433411,-500.0,0.00019061,2]
[370362442,1751981433420,-500.0,0.00019061,2]
[370362443,1751981433430,-500.0,0.00019061,2]
[370362444,1751981433440,-500.0,0.00019061,2]
[370362445,1751981433450,-550.0,0.00019061,2]
[370362446,1751981433460,-500.0,0.00019061,2]
[370362447,1751981433470,-500.0,0.00019061,2]
[370362448,1751981433479,-500.0,0.00019061,2]
[370362449,1751981433489,-500.0,0.00019061,2]
[370362450,1751981433499,-500.0,0.00019061,2]
[370362451,1751981433510,-500.0,0.00019061,2]
[370362452,1751981433520,-364.48,0.00019062,3]
[370362453,1751981433530,-168.45,0.00019062,3]
[370362454,1751981433540,-505.4,0.00019062,3]
[370362455,1751981433550,-848.65081022,0.00019066,2]
[370362456,1751981433560,-848.65081022,0.00019066,2]
[370362457,1751981433570,-848.65081022,0.00019066,2]
[370362458,1751981433580,-848.65081022,0.00019066,2]
[370362459,1751981433589,-848.65081022,0.00019066,2]
[370362460,1751981433599,-848.65081022,0.00019066,2]
[370362461,1751981433608,-848.65081022,0.00019066,2]
[370362462,1751981433618,-848.65081022,0.00019066,2]
[370362463,1751981433627,-848.65081022,0.00019066,2]
[370362464,1751981433637,-848.65081022,0.00019066,2]
[370362465,1751981433647,-848.65081022,0.00019066,2]
[370362466,1751981433657,-848.65081022,0.00019066,2]
[370362467,1751981433666,-848.65081022,0.00019066,2]
[370362468,1751981433676,-848.65081022,0.00019066,2]
[370362469,1751981433686,-848.65081022,0.00019066,2]
[370362470,1751981433695,-848.65081022,0.00019066,2]
[370362471,1751981433704,-500.0,0.00019066,2]
[370362472,1751981433714,-328.54075625,0.00019066,2]
[370362473,1751981433723,-1791.75913502,0.00019066,2]
[370362474,1751981433732,-1791.75913502,0.00019066,2]
[370362475,1751981433742,-1791.75913502,0.00019066,2]
[370362476,1751981433753,-1791.75913502,0.00019066,2]
[370362477,1751981433762,-1791.75913502,0.00019066,2]
[370362478,1751981433772,-1791.75913502,0.00019066,2]
[370362479,1751981433782,-1791.75913502,0.00019066,2]
[370362480,1751981433791,-1791.75913502,0.00019066,2]
[370362481,1751981433801,-1791.75913502,0.00019066,2]
[370362482,1751981433812,-1864.11863855,0.00019066,2]
[370362483,1751981433822,-1864.11863855,0.00019066,2]
[370362484,1751981433833,-151.0,0.00019067,2]
[370362485,1751981433842,-151.0,0.00019067,2]
[370362486,1751981433852,-203.28745362,0.00019067,2]
[370362487,1751981433861,-151.0,0.00019067,2]
[370362488,1751981433870,-151.0,0.00019067,2]
[370362489,1751981433880,-151.0,0.00019067,2]
[370362490,1751981433890,-151.0,0.00019067,2]
[370362491,1751981433900,-151.0,0.00019067,2]
[370362492,1751981433909,-151.0,0.00019067,2]
[370362493,1751981433919,-151.0,0.00019067,2]
[370362494,1751981433928,-151.0,0.00019067,2]
[370362495,1751981433938,-151.0,0.00019067,2]
[370362496,1751981433947,-151.0,0.00019067,2]
[370362497,1751981433957,-151.0,0.00019067,2]